fUST/lending_fUST_20250205
["ID","MTS","AMOUNT","RATE_DAILY","PERIOD"]
[351711479,1738761050285,-196.343942,0.00015581,2]
[351711481,1738761050294,-196.343942,0.00015581,2]
[351711483,1738761050304,-196.343942,0.00015581,2]
[351711485,1738761050313,-249.262843,0.00015581,2]
[351711487,1738761050322,-249.262843,0.00015581,2]
[351711489,1738761050332,-249.262843,0.00015581,2]
[351711491,1738761050342,-249.262843,0.00015581,2]
[351711493,1738761050352,-249.262843,0.00015581,2]
[351711495,1738761050361,-249.262843,0.00015581,2]
[351711497,1738761050371,-247.608902,0.00015581,2]
[351711499,1738761050380,-247.608902,0.00015581,2]
[351711501,1738761050389,-247.608902,0.00015581,2]
[351711503,1738761050398,-247.608902,0.00015581,2]
[351711505,1738761050407,-247.608902,0.00015581,2]
[351711507,1738761050418,-247.608902,0.00015581,2]
[351711509,1738761050427,-500.0,0.00015582,2]
[351711511,1738761050436,-151.0,0.00015582,2]
[351711513,1738761050445,-151.0,0.00015582,2]
[351711515,1738761050454,-151.0,0.00015582,2]
[351711517,1738761050463,-500.0,0.00015582,2]
[351711519,1738761050473,-500.0,0.00015582,2]
[351711521,1738761050481,-500.0,0.00015582,2]
[351711523,1738761050491,-500.0,0.00015582,2]
[351711525,1738761050500,-500.0,0.00015582,2]
[351711527,1738761050509,-501.87043393,0.00015582,2]
[351711529,1738761050517,-500.0,0.00015582,2]
[351711531,1738761050526,-500.0,0.00015582,2]
[351711533,1738761050535,-500.0,0.00015582,2]
[351711535,1738761050545,-501.68634764,0.00015582,2]
[351711537,1738761050553,-500.0,0.00015582,2]
[351711539,1738761050564,-500.0,0.00015582,2]
[351711541,1738761050573,-500.0,0.00015582,2]
[351711543,1738761050582,-500.0,0.00015582,2]
[351711545,1738761050591,-500.0,0.00015582,2]
[351711547,1738761050600,-151.0,0.00015582,2]
[351711549,1738761050609,-154.565545,0.00015582,2]
[351711551,1738761050618,-500.0,0.00015582,2]
[351711553,1738761050628,-500.0,0.00015582,2]
[351711555,1738761050637,-500.0,0.00015582,2]
[351711557,1738761050646,-500.0,0.00015582,2]
[351711559,1738761050656,-500.0,0.00015582,2]
[351711561,1738761050665,-500.0,0.00015582,2]
[351711563,1738761050674,-500.0,0.00015582,2]
[351711565,1738761050683,-500.0,0.00015582,2]
[351711567,1738761050692,-500.0,0.00015582,2]
[351711569,1738761050702,-500.0,0.00015582,2]
[351711571,1738761050711,-500.0,0.00015582,2]
[351711573,1738761050720,-500.0,0.00015582,2]
[351711575,1738761050729,-505.39755004,0.00015582,2]
[351711577,1738761050738,-502.3526413,0.00015582,2]
[351711579,1738761050747,-500.0,0.00015582,2]
[351711581,1738761050756,-843.619028,0.00015582,2]
[351711583,1738761050765,-843.619028,0.00015582,2]
[351711585,1738761050774,-843.619028,0.00015582,2]
[351711598,1738761050783,-843.619028,0.00015582,2]
[351711601,1738761050904,-342.363898,0.00015582,2]
[351711603,1738761050914,-342.363898,0.00015582,2]
[351711605,1738761050923,-342.363898,0.00015582,2]
[351711607,1738761050932,-342.363898,0.00015582,2]
[351711609,1738761050942,-342.363898,0.00015582,2]
[351711611,1738761050952,-342.363898,0.00015582,2]
[351711613,1738761050961,-231.439727,0.00015582,2]
[351711615,1738761050970,-231.439727,0.00015582,2]
[351711617,1738761050984,-231.439727,0.00015582,2]
[351711619,1738761050994,-231.439727,0.00015582,2]
[351711621,1738761051004,-500.0,0.00015582,2]
[351711623,1738761051013,-669.99,0.00015582,2]
[351711625,1738761051028,-158.006653,0.00015582,2]
[351711627,1738761051038,-158.006653,0.00015582,2]
[351711629,1738761051047,-2075.84,0.00015582,2]
[351711631,1738761051057,-158.006653,0.00015582,2]
[351711633,1738761051067,-158.006653,0.00015582,2]
[351711635,1738761051076,-623.28,0.00015582,2]
[351711637,1738761051085,-500.0,0.00015582,2]
[351711639,1738761051094,-700.49,0.00015582,2]
[351711641,1738761051104,-700.49,0.00015582,2]
[351711643,1738761051113,-700.49,0.00015582,2]
[351711645,1738761051123,-700.49,0.00015582,2]
[351711647,1738761051132,-700.49,0.00015582,2]
[351711649,1738761051141,-700.49,0.00015582,2]
[351711651,1738761051150,-700.49,0.00015582,2]
[351711653,1738761051160,-700.49,0.00015582,2]
[351711655,1738761051169,-700.49,0.00015582,2]
[351711657,1738761051179,-700.49,0.00015582,2]
[351711659,1738761051188,-700.49,0.00015582,2]
[351711661,1738761051198,-700.49,0.00015582,2]
[351711663,1738761051207,-700.49,0.00015582,2]
[351711665,1738761051216,-700.49,0.00015582,2]
[351711667,1738761051225,-700.65297822,0.00015582,2]
[351711669,1738761051235,-500.0,0.00015582,2]
[351711671,1738761051244,-534.21,0.00015582,2]
[351711673,1738761051253,-809.52,0.00015582,2]
[351711675,1738761051262,-502.43674304,0.00015582,2]
[351711677,1738761051271,-500.0,0.00015582,2]
[351711679,1738761051281,-151.0,0.00015582,2]
[351711681,1738761051290,-3852.57,0.00015582,2]
[351711683,1738761051299,-1265.49,0.00015582,2]
[351711685,1738761051308,-1177.738485,0.00015582,2]
[351711687,1738761051317,-1177.738485,0.00015582,2]
[351711689,1738761051326,-737.53745,0.00015582,2]
[351711691,1738761051335,-737.53745,0.00015582,2]
[351711693,1738761051344,-151.0,0.00015582,2]
[351711695,1738761051353,-196.343942,0.00015582,2]
[351711697,1738761051362,-151.0,0.00015582,2]
[351711699,1738761051372,-196.343942,0.00015582,2]
[351711701,1738761051380,-249.262843,0.00015582,2]
[351711703,1738761051390,-249.262843,0.00015582,2]
[351711705,1738761051399,-247.608902,0.00015582,2]
[351711707,1738761051408,-247.608902,0.00015582,2]
[351711709,1738761051417,-151.0,0.00015583,2]
[351711711,1738761051426,-1905.703957,0.00015583,2]
[351711713,1738761051435,-1905.703957,0.00015583,2]
[351711715,1738761051444,-151.0,0.00015583,2]
[351711717,1738761051454,-151.0,0.00015583,2]
[351711719,1738761051463,-151.0,0.00015583,2]
[351711721,1738761051472,-151.0,0.00015583,2]
[351711723,1738761051482,-151.0,0.00015583,2]
[351711725,1738761051491,-352.500483,0.00015583,2]
[351711727,1738761051500,-352.500483,0.00015583,2]
[351711729,1738761051510,-352.500483,0.00015583,2]
[351711731,1738761051519,-352.500483,0.00015583,2]
[351711733,1738761051528,-352.500483,0.00015583,2]
[351711735,1738761051538,-352.500483,0.00015583,2]
[351711737,1738761051547,-317.859397,0.00015583,2]
[351711739,1738761051556,-317.859397,0.00015583,2]
[351711741,1738761051567,-151.0,0.00015583,2]
[351711743,1738761051577,-151.0,0.00015583,2]
[351711745,1738761051586,-151.0,0.00015583,2]
[351711747,1738761051595,-151.0,0.00015583,2]
[351711749,1738761051605,-151.0,0.00015583,2]
[351711751,1738761051614,-151.0,0.00015583,2]
[351711753,1738761051624,-2079.760942,0.00015583,2]
[351711755,1738761051633,-2079.760942,0.00015583,2]
[351711757,1738761051644,-2079.760942,0.00015583,2]
[351711759,1738761051655,-2079.760942,0.00015583,2]
[351711761,1738761051664,-326.540906,0.00015583,2]
[351711763,1738761051673,-326.540906,0.00015583,2]
[351711765,1738761051683,-326.540906,0.00015583,2]
[351711767,1738761051692,-326.540906,0.00015583,2]
[351711770,1738761051701,-476.331879,0.00015583,2]
[351711772,1738761051710,-476.331879,0.00015583,2]
[351711774,1738761051719,-476.331879,0.00015583,2]
[351711776,1738761051728,-476.331879,0.00015583,2]
[351711778,1738761051738,-843.619028,0.00015583,2]
[351711780,1738761051747,-843.619028,0.00015583,2]
[351711782,1738761051757,-843.619028,0.00015583,2]
[351711784,1738761051766,-843.619028,0.00015583,2]
[351711785,1738761051775,-342.363898,0.00015583,2]
[351711786,1738761051784,-342.363898,0.00015583,2]
[351711787,1738761051794,-342.363898,0.00015583,2]
[351711788,1738761051803,-342.363898,0.00015583,2]
[351711789,1738761051812,-231.439727,0.00015583,2]
[351711790,1738761051822,-231.439727,0.00015583,2]
[351711791,1738761051831,-158.006653,0.00015583,2]
[351711792,1738761051842,-158.006653,0.00015583,2]
[351711793,1738761051855,-151.0,0.00015583,2]
[351711794,1738761051866,-1177.738485,0.00015583,2]
[351711795,1738761051877,-1177.738485,0.00015583,2]
[351711796,1738761051886,-737.53745,0.00015583,2]
[351711797,1738761051895,-737.53745,0.00015583,2]
[351711798,1738761051906,-151.0,0.00015583,2]
[351711799,1738761051915,-196.343942,0.00015583,2]
[351711800,1738761051924,-151.0,0.00015583,2]
[351711801,1738761051933,-196.343942,0.00015583,2]
[351711802,1738761051944,-249.262843,0.00015583,2]
[351711803,1738761051953,-249.262843,0.00015583,2]
[351711804,1738761051963,-247.608902,0.00015583,2]
[351711805,1738761051972,-247.608902,0.00015583,2]
[351711806,1738761051986,-151.0,0.00015584,2]
[351711807,1738761051995,-151.0,0.00015584,2]
[351711808,1738761052004,-151.0,0.00015584,2]
[351711809,1738761052016,-170.256914,0.00015584,2]
[351711810,1738761052026,-170.256914,0.00015584,2]
[351711811,1738761052035,-1905.703957,0.00015584,2]
[351711812,1738761052045,-1905.703957,0.00015584,2]
[351711813,1738761052056,-1905.703957,0.00015584,2]
[351711814,1738761052066,-1905.703957,0.00015584,2]
[351711815,1738761052075,-1905.703957,0.00015584,2]
[351711817,1738761052085,-1905.703957,0.00015584,2]
[351711819,1738761052094,-1905.703957,0.00015584,2]
[351711821,1738761052103,-1905.703957,0.00015584,2]
[351711823,1738761052113,-1905.703957,0.00015584,2]
[351711825,1738761052122,-1905.703957,0.00015584,2]
[351711827,1738761052131,-151.0,0.00015584,2]
[351711828,1738761052140,-352.500483,0.00015584,2]
[351711830,1738761052150,-352.500483,0.00015584,2]
[351711832,1738761052160,-352.500483,0.00015584,2]
[351711835,1738761052169,-352.500483,0.00015584,2]
[351711837,1738761052179,-352.500483,0.00015584,2]
[351711838,1738761052188,-352.500483,0.00015584,2]
[351711841,1738761052197,-352.500483,0.00015584,2]
[351711843,1738761052207,-352.500483,0.00015584,2]
[351711844,1738761052216,-317.859397,0.00015584,2]
[351711847,1738761052226,-317.859397,0.00015584,2]
[351711848,1738761052235,-317.859397,0.00015584,2]
[351711851,1738761052244,-317.859397,0.00015584,2]
[351711853,1738761052254,-317.859397,0.00015584,2]
[351711854,1738761052263,-317.859397,0.00015584,2]
[351711856,1738761052272,-317.859397,0.00015584,2]
[351711858,1738761052282,-317.859397,0.00015584,2]
[351711861,1738761052291,-317.859397,0.00015584,2]
[351711863,1738761052300,-317.859397,0.00015584,2]
[351711865,1738761052310,-151.0,0.00015584,2]
[351711867,1738761052319,-151.0,0.00015584,2]
[351711869,1738761052328,-245.168943,0.00015584,2]
[351711870,1738761052337,-151.0,0.00015584,2]
[351711872,1738761052347,-151.0,0.00015584,2]
[351711874,1738761052356,-151.0,0.00015584,2]
[351711876,1738761052366,-173.775641,0.00015584,2]
[351711878,1738761052376,-2079.760942,0.00015584,2]
[351711880,1738761052385,-2079.760942,0.00015584,2]
[351711882,1738761052395,-2079.760942,0.00015584,2]
[351711884,1738761052404,-2079.760942,0.00015584,2]
[351711886,1738761052414,-2079.760942,0.00015584,2]
[351711888,1738761052423,-2079.760942,0.00015584,2]
[351711891,1738761052432,-326.540906,0.00015584,2]
[351711893,1738761052441,-326.540906,0.00015584,2]
[351711895,1738761052451,-326.540906,0.00015584,2]
[351711897,1738761052460,-326.540906,0.00015584,2]
[351711899,1738761052469,-326.540906,0.00015584,2]
[351711900,1738761052478,-326.540906,0.00015584,2]
[351711902,1738761052488,-476.331879,0.00015584,2]
[351711905,1738761052498,-476.331879,0.00015584,2]
[351711907,1738761052507,-476.331879,0.00015584,2]
[351711908,1738761052517,-476.331879,0.00015584,2]
[351711911,1738761052526,-476.331879,0.00015584,2]
[351711913,1738761052536,-476.331879,0.00015584,2]
[351711915,1738761052545,-843.619028,0.00015584,2]
[351711917,1738761052554,-843.619028,0.00015584,2]
[351711919,1738761052564,-843.619028,0.00015584,2]
[351711921,1738761052573,-843.619028,0.00015584,2]
[351711923,1738761052582,-342.363898,0.00015584,2]
[351711925,1738761052592,-342.363898,0.00015584,2]
[351711927,1738761052601,-342.363898,0.00015584,2]
[351711929,1738761052610,-342.363898,0.00015584,2]
[351711931,1738761052619,-231.439727,0.00015584,2]
[351711945,1738761052735,-231.439727,0.00015584,2]
[351711947,1738761052744,-231.439727,0.00015584,2]
[351711949,1738761052756,-231.439727,0.00015584,2]
[351711951,1738761052766,-158.006653,0.00015584,2]
[351711953,1738761052778,-158.006653,0.00015584,2]
[351711955,1738761052788,-158.006653,0.00015584,2]
[351711957,1738761052797,-158.006644,0.00015584,2]
[351711959,1738761052806,-151.0,0.00015584,2]
[351711961,1738761052815,-1177.738485,0.00015584,2]
[351711963,1738761052824,-1177.738485,0.00015584,2]
[351711965,1738761052834,-1177.738485,0.00015584,2]
[351711967,1738761052843,-1177.738484,0.00015584,2]
[351711969,1738761052852,-737.53745,0.00015584,2]
[351711971,1738761052861,-737.53745,0.00015584,2]
[351711973,1738761052870,-737.53745,0.00015584,2]
[351711975,1738761052882,-737.537451,0.00015584,2]
[351711977,1738761052891,-151.0,0.00015584,2]
[351711979,1738761052901,-151.0,0.00015584,2]
[351711981,1738761052910,-196.343942,0.00015584,2]
[351711983,1738761052920,-151.0,0.00015584,2]
[351711985,1738761052929,-151.0,0.00015584,2]
[351711987,1738761052939,-196.343938,0.00015584,2]
[351711989,1738761052948,-249.262843,0.00015584,2]
[351711991,1738761052958,-249.262843,0.00015584,2]
[351711993,1738761052967,-249.262843,0.00015584,2]
[351711995,1738761052978,-249.262844,0.00015584,2]
[351711997,1738761052988,-247.608902,0.00015584,2]
[351711999,1738761052998,-247.608902,0.00015584,2]
[351712001,1738761053008,-247.608902,0.00015584,2]
[351712003,1738761053019,-247.608898,0.00015584,2]
[351712004,1738761053028,-151.0,0.00015585,2]
[351712005,1738761053037,-151.0,0.00015585,2]
[351712006,1738761053046,-151.0,0.00015585,2]
[351712007,1738761053056,-151.0,0.00015585,2]
[351712008,1738761053065,-170.256914,0.00015585,2]
[351712009,1738761053074,-170.256914,0.00015585,2]
[351712010,1738761053083,-170.256914,0.00015585,2]
[351712011,1738761053093,-352.500483,0.00015585,2]
[351712012,1738761053102,-352.500483,0.00015585,2]
[351712013,1738761053111,-843.619028,0.00015585,2]
[351712014,1738761053120,-843.619028,0.00015585,2]
[351712015,1738761053131,-342.363898,0.00015585,2]
[351712016,1738761053139,-342.363898,0.00015585,2]
[351712017,1738761053148,-231.439727,0.00015585,2]
[351712018,1738761053158,-231.439727,0.00015585,2]
[351712019,1738761053167,-154.096968,0.00015586,2]
[351712020,1738761053176,-151.0,0.00015586,2]
[351712021,1738761053185,-151.0,0.00015586,2]
[351712022,1738761053195,-170.256914,0.00015586,2]
[351712023,1738761053204,-1905.703957,0.00015586,2]
[351712025,1738761053213,-1905.703957,0.00015586,2]
[351712026,1738761053223,-1905.703957,0.00015586,2]
[351712028,1738761053233,-1905.703957,0.00015586,2]
[351712031,1738761053243,-352.500483,0.00015586,2]
[351712033,1738761053255,-352.500483,0.00015586,2]
[351712035,1738761053265,-317.859397,0.00015586,2]
[351712036,1738761053275,-317.859397,0.00015586,2]
[351712039,1738761053285,-317.859397,0.00015586,2]
[351712041,1738761053295,-317.859397,0.00015586,2]
[351712043,1738761053304,-151.0,0.00015586,2]
[351712045,1738761053313,-2079.760942,0.00015586,2]
[351712047,1738761053322,-2079.760942,0.00015586,2]
[351712049,1738761053331,-326.540906,0.00015586,2]
[351712051,1738761053341,-326.540906,0.00015586,2]
[351712053,1738761053350,-476.331879,0.00015586,2]
[351712055,1738761053360,-476.331879,0.00015586,2]
[351712056,1738761053369,-342.363898,0.00015586,2]
[351712058,1738761053379,-342.363898,0.00015586,2]
[351712061,1738761053388,-151.0,0.00015587,2]
[351712062,1738761053398,-151.0,0.00015587,2]
[351712065,1738761053407,-151.0,0.00015587,2]
[351712066,1738761053416,-151.0,0.00015587,2]
[351712068,1738761053426,-151.0,0.00015587,2]
[351712071,1738761053436,-170.256914,0.00015587,2]
[351712073,1738761053449,-170.256914,0.00015587,2]
[351712075,1738761053460,-170.256914,0.00015587,2]
[351712076,1738761053470,-170.256914,0.00015587,2]
[351712078,1738761053479,-170.256914,0.00015587,2]
[351712081,1738761053489,-170.256908,0.00015587,2]
[351712083,1738761053498,-1905.703957,0.00015587,2]
[351712085,1738761053507,-1905.703957,0.00015587,2]
[351712087,1738761053517,-1905.703957,0.00015587,2]
[351712089,1738761053526,-1905.703954,0.00015587,2]
[351712091,1738761053535,-352.500483,0.00015587,2]
[351712093,1738761053544,-352.50049,0.00015587,2]
[351712095,1738761053554,-317.859397,0.00015587,2]
[351712097,1738761053563,-317.859397,0.00015587,2]
[351712099,1738761053573,-317.859397,0.00015587,2]
[351712101,1738761053582,-317.859395,0.00015587,2]
[351712103,1738761053593,-151.0,0.00015587,2]
[351712105,1738761053602,-151.0,0.00015587,2]
[351712107,1738761053612,-2079.760942,0.00015587,2]
[351712109,1738761053621,-2079.760942,0.00015587,2]
[351712111,1738761053631,-2079.760942,0.00015587,2]
[351712113,1738761053640,-2079.760942,0.00015587,2]
[351712115,1738761053650,-326.540906,0.00015587,2]
[351712117,1738761053659,-326.540906,0.00015587,2]
[351712119,1738761053668,-326.540906,0.00015587,2]
[351712121,1738761053677,-326.540906,0.00015587,2]
[351712123,1738761053686,-476.331879,0.00015587,2]
[351712125,1738761053695,-476.331879,0.00015587,2]
[351712127,1738761053705,-476.331879,0.00015587,2]
[351712129,1738761053714,-476.331879,0.00015587,2]
[351712131,1738761053723,-843.619028,0.00015587,2]
[351712133,1738761053732,-843.619026,0.00015587,2]
[351712135,1738761053742,-231.439727,0.00015587,2]
[351712137,1738761053751,-231.43972177,0.00015587,2]
[351712139,1738761053760,-151.0,0.00015588,2]
[351712141,1738761053770,-151.0,0.00015588,2]
[351712143,1738761053780,-151.0,0.00015588,2]
[351712145,1738761053790,-151.0,0.00015588,2]
[351712147,1738761053800,-342.363898,0.00015588,2]
[351712149,1738761053809,-342.363894,0.00015588,2]
[351712151,1738761053818,-151.0,0.00015589,2]
[351712153,1738761053827,-151.0,0.00015589,2]
[351712155,1738761053836,-151.0,0.000156,2]
[351712157,1738761053845,-151.0,0.000156,2]
[351712159,1738761053854,-151.0,0.000156,2]
[351712161,1738761053863,-151.0,0.000156,2]
[351712163,1738761053872,-151.0,0.000156,2]
[351712165,1738761053882,-151.0,0.000156,2]
[351712167,1738761053892,-153.0,0.000156,2]
[351712169,1738761053906,-354.6451938,0.000156,2]
[351712171,1738761053924,-153.0,0.000156,2]
[351712173,1738761053943,-154.5151656,0.000156,2]
[351712175,1738761053954,-215.7177124,0.000156,2]
[351712177,1738761053965,-306.0,0.000156,2]
[351712179,1738761053978,-354.6451938,0.000156,2]
[351712181,1738761053989,-215.7177124,0.000156,2]
[351712183,1738761053998,-154.5151656,0.000156,2]
[351712185,1738761054007,-354.6451938,0.000156,2]
[351712187,1738761054019,-154.5151656,0.000156,2]
[351712189,1738761054028,-153.0,0.000156,2]
[351712191,1738761054038,-153.0,0.000156,2]
[351712193,1738761054047,-215.7177124,0.000156,2]
[351712195,1738761054059,-500.0,0.00015616,2]
[351712197,1738761054069,-7106.65,0.00015616,2]
[351712199,1738761054078,-2943.26,0.00015616,2]
[351712201,1738761054088,-1337.96,0.00015616,2]
[351712203,1738761054097,-1489.5,0.00015616,2]
[351712205,1738761054106,-535.31,0.00015616,2]
[351712207,1738761054116,-500.0,0.00015616,2]
[351712209,1738761054125,-4266.62,0.00015616,2]
[351712211,1738761054135,-614.69,0.00015616,2]
[351712213,1738761054145,-956.36,0.00015617,2]
[351712215,1738761054154,-990.99,0.00015617,2]
[351712217,1738761054164,-500.0,0.00015617,2]
[351712219,1738761054173,-12317.63,0.00015617,2]
[351712221,1738761054182,-1080.16,0.00015617,2]
[351712223,1738761054192,-582.54,0.00015617,2]
[351712225,1738761054201,-20211.34,0.00015617,2]
[351712227,1738761054210,-691.11,0.00015617,2]
[351712229,1738761054219,-500.0,0.00015617,2]
[351712231,1738761054230,-520.18040928,0.00015617,2]
[351712233,1738761054239,-500.0,0.00015617,2]
[351712235,1738761054249,-8058.0,0.00015617,2]
[351712237,1738761054258,-9731.73,0.00015617,2]
[351712239,1738761054268,-4225.15,0.00015617,2]
[351712241,1738761054277,-500.0,0.00015617,2]
[351712243,1738761054287,-524.21,0.00015617,2]
[351712245,1738761054297,-3251.5,0.00015617,2]
[351712247,1738761054307,-1421.35,0.00015617,2]
[351712249,1738761054316,-682.58,0.00015617,2]
[351712251,1738761054325,-500.0,0.00015617,2]
[351712253,1738761054335,-1351.51,0.00015617,2]
[351712255,1738761054344,-500.0,0.00015617,2]
[351712257,1738761054354,-500.0,0.00015617,2]
[351712270,1738761054469,-1107.43,0.00015617,2]
[351712272,1738761054479,-3368.74,0.00015617,2]
[351712274,1738761054488,-3521.54,0.00015617,2]
[351712276,1738761054498,-14106.84,0.00015617,2]
[351712278,1738761054507,-221.258329,0.00015671,2]
[351712280,1738761054516,-160.775917,0.00015689,2]
[351712282,1738761054526,-160.775917,0.00015689,2]
[351712284,1738761054535,-160.775917,0.00015689,2]
[351712286,1738761054544,-160.775917,0.00015689,2]
[351712288,1738761054554,-160.775917,0.00015689,2]
[351712290,1738761054564,-160.775917,0.00015689,2]
[351712292,1738761054574,-160.775917,0.00015689,2]
[351712294,1738761054583,-160.775917,0.00015689,2]
[351712296,1738761054593,-160.775917,0.0001569,2]
[351712298,1738761054603,-160.775917,0.0001569,2]
[351712300,1738761054612,-160.775917,0.0001569,2]
[351712302,1738761054622,-160.775917,0.0001569,2]
[351712304,1738761054632,-160.775917,0.0001569,2]
[351712306,1738761054641,-160.775924,0.0001569,2]
[351712308,1738761054651,-5000.0,0.00015691,2]
[351712310,1738761054660,-51591.49058377,0.000157,2]
[351712312,1738761054670,-151.0,0.000157,2]
[351712314,1738761054679,-2079.760942,0.000157,2]
[351712316,1738761054689,-2079.760942,0.000157,2]
[351712318,1738761054698,-326.540906,0.000157,2]
[351712320,1738761054708,-326.540906,0.000157,2]
[351712322,1738761054718,-476.331879,0.000157,2]
[351712324,1738761054727,-476.331879,0.000157,2]
[351712326,1738761054735,-429.9589496,0.000157,2]
[351712328,1738761054744,-354.6451938,0.000157,2]
[351712330,1738761054754,-154.5151656,0.000157,2]
[351712332,1738761054763,-215.483014,0.000157,2]
[351712334,1738761054772,-353.2065932,0.000157,2]
[351712336,1738761054781,-153.0,0.000157,2]
[351712338,1738761054790,-154.5151656,0.000157,2]
[351712339,1738761054800,-153.0,0.000157,2]
[351712342,1738761054809,-203.6620308,0.000157,2]
[351712344,1738761054820,-500.0,0.00015714,2]
[351712346,1738761054829,-500.0,0.00015714,2]
[351712347,1738761054838,-500.0,0.00015714,2]
[351712349,1738761054847,-500.0,0.00015714,2]
[351712352,1738761054856,-500.0,0.00015714,2]
[351712354,1738761054866,-500.0,0.00015714,2]
[351712356,1738761054876,-500.0,0.00015714,2]
[351712358,1738761054886,-500.0,0.00015714,2]
[351712360,1738761054896,-500.0,0.00015714,2]
[351712362,1738761054905,-3790.96,0.00015714,2]
[351712364,1738761054914,-500.0,0.00015714,2]
[351712365,1738761054923,-500.0,0.00015714,2]
[351712367,1738761054932,-533.3,0.00015714,2]
[351712369,1738761054941,-500.0,0.00015714,2]
[351712371,1738761054951,-604.19,0.00015714,2]
[351712373,1738761054961,-500.0,0.00015714,2]
[351712375,1738761054971,-528.105748,0.00015714,2]
[351712377,1738761054984,-500.0,0.00015714,2]
[351712379,1738761054994,-1131.5,0.00015714,2]
[351712381,1738761055003,-500.0,0.00015714,2]
[351712383,1738761055013,-500.0,0.00015714,2]
[351712385,1738761055025,-500.0,0.00015714,2]
[351712388,1738761055035,-500.0,0.00015714,2]
[351712389,1738761055045,-500.0,0.00015714,2]
[351712391,1738761055056,-568.47,0.00015714,2]
[351712393,1738761055066,-500.0,0.00015714,2]
[351712396,1738761055077,-312.24934251,0.00015714,2]
[351712398,1738761055086,-500.0,0.00015714,2]
[351712400,1738761055096,-500.0,0.00015714,2]
[351712401,1738761055106,-500.0,0.00015714,2]
[351712404,1738761055115,-500.0,0.00015714,2]
[351712406,1738761055125,-1329.99,0.00015714,2]
[351712408,1738761055134,-724.01,0.00015714,2]
[351712410,1738761055144,-820.1,0.00015714,2]
[351712412,1738761055153,-500.0,0.00015714,2]
[351712414,1738761055163,-500.0,0.00015714,2]
[351712416,1738761055172,-500.0,0.00015714,2]
[351712418,1738761055182,-500.0,0.00015714,2]
[351712420,1738761055191,-1986.25,0.00015714,2]
[351712422,1738761055201,-500.0,0.00015714,2]
[351712424,1738761055213,-1795.01,0.00015714,2]
[351712428,1738761055236,-500.0,0.00015714,2]
[351712430,1738761055253,-931.78,0.00015714,2]
[351712434,1738761055272,-500.0,0.00015714,2]
[351712437,1738761055291,-1724.05,0.00015714,2]
[351712440,1738761055310,-1337.64,0.00015714,2]
[351712442,1738761055325,-523.93,0.00015714,2]
[351712445,1738761055343,-741.47,0.00015714,2]
[351712448,1738761055357,-500.0,0.00015714,2]
[351712450,1738761055373,-1209.72,0.00015714,2]
[351712454,1738761055392,-2306.51,0.00015714,2]
[351712457,1738761055412,-500.0,0.00015714,2]
[351712459,1738761055426,-500.0,0.00015714,2]
[351712462,1738761055441,-500.0,0.00015714,2]
[351712465,1738761055457,-500.0,0.00015714,2]
[351712467,1738761055473,-500.0,0.00015714,2]
[351712470,1738761055488,-500.0,0.00015714,2]
[351712472,1738761055501,-500.0,0.00015714,2]
[351712475,1738761055516,-500.0,0.00015714,2]
[351712478,1738761055532,-500.0,0.00015714,2]